[Event "Titled Tuesday Blitz April 18 Late 2023"]
[White "merinasian"]
[Black "Hasangatin, Ramil"]
[BlackFideId "4122160"]
[WhiteElo "2355"]
[BlackElo "2275"]
[Result "0-1"]
[Round "02"]
[TimeControl "180+2"]
[Date "2023.04.18"]
[WhiteClock "0:01:01"]
[BlackClock "0:02:26"]

1. d4 {[%clk 0:03:00]}  d6 {[%clk 0:02:59]} 2. Nf3 {[%clk 0:03:00]}  Bg4 {[%clk 0:02:59]} 3. Nbd2 {[%clk 0:02:58]}  Nf6 {[%clk 0:02:58]} 4. h3 {[%clk 0:02:49]}  Bh5 {[%clk 0:02:58]} 5. e4 {[%clk 0:02:48]}  e6 {[%clk 0:02:57]} 6. Be2 {[%clk 0:02:46]}  Be7 {[%clk 0:02:57]} 7. O-O {[%clk 0:02:46]}  O-O {[%clk 0:02:57]} 8. c3 {[%clk 0:02:43]}  c6 {[%clk 0:02:57]} 9. Re1 {[%clk 0:02:43]}  Nbd7 {[%clk 0:02:56]} 10. e5 {[%clk 0:02:32]}  dxe5 {[%clk 0:02:54]} 11. dxe5 {[%clk 0:02:32]}  Nd5 {[%clk 0:02:54]} 12. Nc4 {[%clk 0:02:26]}  Qc7 {[%clk 0:02:52]} 13. Nd6 {[%clk 0:02:16]}  Bxf3 {[%clk 0:02:50]} 14. Bxf3 {[%clk 0:02:14]}  Nxe5 {[%clk 0:02:50]} 15. Rxe5 {[%clk 0:02:08]}  Bxd6 {[%clk 0:02:49]} 16. Re1 {[%clk 0:02:08]}  Bf4 {[%clk 0:02:47]} 17. c4 {[%clk 0:02:07]}  Nb6 {[%clk 0:02:40]} 18. c5 {[%clk 0:02:00]}  Nd5 {[%clk 0:02:38]} 19. Bxf4 {[%clk 0:01:55]}  Qxf4 {[%clk 0:02:37]} 20. Re4 {[%clk 0:01:53]}  Qf6 {[%clk 0:02:36]} 21. Rd4 {[%clk 0:01:51]}  Rfd8 {[%clk 0:02:35]} 22. Bxd5 {[%clk 0:01:40]}  Rxd5 {[%clk 0:02:34]} 23. Rxd5 {[%clk 0:01:40]}  exd5 {[%clk 0:02:34]} 24. Qb3 {[%clk 0:01:40]}  Qe7 {[%clk 0:02:33]} 25. Qb4 {[%clk 0:01:32]}  Re8 {[%clk 0:02:33]} 26. Qa5 {[%clk 0:01:32]}  a6 {[%clk 0:02:30]} 27. Qb4 {[%clk 0:01:29]}  h6 {[%clk 0:02:30]} 28. Rc1 {[%clk 0:01:13]}  Qd7 {[%clk 0:02:30]} 29. Qd4 {[%clk 0:01:10]}  Re4 {[%clk 0:02:30]} 30. Qd3 {[%clk 0:01:10]}  Qe7 {[%clk 0:02:30]} 31. Rc2 {[%clk 0:01:06]}  Re1+ {[%clk 0:02:26]} 32. Kh2 {[%clk 0:01:05]}  Qe5+ {[%clk 0:02:26]} 33. g3 {[%clk 0:01:04]}  Qe4 {[%clk 0:02:27]} 34. Qxe4 {[%clk 0:01:03]}  Rxe4 {[%clk 0:02:28]} 35. Kg2 {[%clk 0:01:01]}  f5 {[%clk 0:02:26]} 0-1


[Site "https://www.chess.com"]

[Event "Titled Tuesday Blitz April 18 Late 2023"]
[White "Msellek, Ilyass"]
[Black "Hoffmann, Asa"]
[WhiteFideId "675938"]
[BlackFideId "2001470"]
[WhiteElo "2302"]
[BlackElo "2117"]
[Result "0-1"]
[Round "02"]
[TimeControl "180+2"]
[Date "2023.04.18"]
[WhiteClock "0:00:18"]
[BlackClock "0:01:40"]

1. Nf3 {[%clk 0:02:56]}  d6 {[%clk 0:02:59]} 2. g3 {[%clk 0:02:56]}  e5 {[%clk 0:02:56]} 3. Bg2 {[%clk 0:02:56]}  Nf6 {[%clk 0:02:56]} 4. O-O {[%clk 0:02:56]}  Be7 {[%clk 0:02:55]} 5. d3 {[%clk 0:02:56]}  Be6 {[%clk 0:02:55]} 6. e4 {[%clk 0:02:55]}  h6 {[%clk 0:02:55]} 7. c4 {[%clk 0:02:54]}  c5 {[%clk 0:02:54]} 8. Nc3 {[%clk 0:02:53]}  Qd7 {[%clk 0:02:54]} 9. Re1 {[%clk 0:02:51]}  Nc6 {[%clk 0:02:54]} 10. Nd5 {[%clk 0:02:50]}  Bg4 {[%clk 0:02:46]} 11. Be3 {[%clk 0:02:47]}  Nxd5 {[%clk 0:02:46]} 12. cxd5 {[%clk 0:02:45]}  Nd4 {[%clk 0:02:45]} 13. Bxd4 {[%clk 0:02:44]}  cxd4 {[%clk 0:02:45]} 14. a4 {[%clk 0:02:40]}  O-O {[%clk 0:02:39]} 15. Qb3 {[%clk 0:02:28]}  f5 {[%clk 0:02:32]} 16. exf5 {[%clk 0:01:46]}  Bxf3 {[%clk 0:02:25]} 17. Bxf3 {[%clk 0:01:42]}  Qxf5 {[%clk 0:02:24]} 18. Be4 {[%clk 0:01:33]}  Qxf2+ {[%clk 0:02:24]} 19. Kh1 {[%clk 0:01:33]}  Rac8 {[%clk 0:02:12]} 20. Rac1 {[%clk 0:01:18]}  Bg5 {[%clk 0:02:03]} 21. Rcd1 {[%clk 0:00:19]}  Rc2 {[%clk 0:01:55]} 22. Qxc2 {[%clk 0:00:19]}  Qxc2 {[%clk 0:01:55]} 23. Rf1 {[%clk 0:00:20]}  Rf6 {[%clk 0:01:45]} 24. Rxf6 {[%clk 0:00:18]}  Qxd1+ {[%clk 0:01:40]} 0-1


[Site "https://www.chess.com"]

[Event "Titled Tuesday Blitz April 18 Late 2023"]
[White "Koellner, Ruben Gideon"]
[Black "Peatman, Carter"]
[WhiteFideId "12993093"]
[BlackFideId "2096480"]
[WhiteElo "2314"]
[BlackElo "2003"]
[Result "1-0"]
[Round "02"]
[TimeControl "180+2"]
[Date "2023.04.18"]
[WhiteClock "0:00:40"]
[BlackClock "0:00:01"]

1. d4 {[%clk 0:03:00]}  d5 {[%clk 0:02:54]} 2. Nf3 {[%clk 0:03:00]}  Nf6 {[%clk 0:02:51]} 3. e3 {[%clk 0:03:00]}  c5 {[%clk 0:02:47]} 4. c3 {[%clk 0:03:00]}  Nc6 {[%clk 0:02:48]} 5. Bd2 {[%clk 0:03:00]}  Bg4 {[%clk 0:02:43]} 6. Be2 {[%clk 0:03:00]}  e6 {[%clk 0:02:43]} 7. h3 {[%clk 0:02:59]}  Bh5 {[%clk 0:02:41]} 8. c4 {[%clk 0:02:58]}  cxd4 {[%clk 0:02:38]} 9. Nxd4 {[%clk 0:02:59]}  Bg6 {[%clk 0:02:30]} 10. cxd5 {[%clk 0:02:54]}  Nxd5 {[%clk 0:02:17]} 11. Nxc6 {[%clk 0:02:53]}  bxc6 {[%clk 0:02:18]} 12. Nc3 {[%clk 0:02:52]}  Bd6 {[%clk 0:02:04]} 13. O-O {[%clk 0:02:50]}  O-O {[%clk 0:02:02]} 14. Qa4 {[%clk 0:02:48]}  Nb4 {[%clk 0:01:43]} 15. a3 {[%clk 0:02:41]}  Bc2 {[%clk 0:01:38]} 16. b3 {[%clk 0:02:35]}  Nd5 {[%clk 0:01:38]} 17. Rfc1 {[%clk 0:02:27]}  Bg6 {[%clk 0:01:36]} 18. Qxc6 {[%clk 0:02:23]}  Rc8 {[%clk 0:01:35]} 19. Qa6 {[%clk 0:02:20]}  Be5 {[%clk 0:01:26]} 20. Nxd5 {[%clk 0:02:16]}  Rxc1+ {[%clk 0:01:05]} 21. Rxc1 {[%clk 0:02:16]}  Qxd5 {[%clk 0:01:04]} 22. Bb4 {[%clk 0:02:13]}  Rd8 {[%clk 0:00:53]} 23. Rc8 {[%clk 0:02:01]}  h5 {[%clk 0:00:42]} 24. Rxd8+ {[%clk 0:01:56]}  Qxd8 {[%clk 0:00:43]} 25. Qxa7 {[%clk 0:01:55]}  Qh4 {[%clk 0:00:27]} 26. Qc5 {[%clk 0:01:42]}  Qe4 {[%clk 0:00:23]} 27. Qc1 {[%clk 0:01:27]}  Qb7 {[%clk 0:00:17]} 28. Bf3 {[%clk 0:01:23]}  Qb5 {[%clk 0:00:10]} 29. Qc8+ {[%clk 0:01:06]}  Kh7 {[%clk 0:00:10]} 30. Qc5 {[%clk 0:01:07]}  Qb8 {[%clk 0:00:07]} 31. Bc3 {[%clk 0:00:56]}  Bd6 {[%clk 0:00:07]} 32. Qd4 {[%clk 0:00:54]}  Bf8 {[%clk 0:00:06]} 33. b4 {[%clk 0:00:52]}  f6 {[%clk 0:00:05]} 34. Be4 {[%clk 0:00:51]}  e5 {[%clk 0:00:02]} 35. Bxg6+ {[%clk 0:00:50]}  Kxg6 {[%clk 0:00:03]} 36. Qd3+ {[%clk 0:00:48]}  Kh6 {[%clk 0:00:04]} 37. e4 {[%clk 0:00:46]}  Qc7 {[%clk 0:00:04]} 38. Bd2+ {[%clk 0:00:46]}  Kh7 {[%clk 0:00:04]} 39. g3 {[%clk 0:00:44]}  g6 {[%clk 0:00:04]} 40. Kg2 {[%clk 0:00:44]}  Be7 {[%clk 0:00:05]} 41. h4 {[%clk 0:00:45]}  Qb7 {[%clk 0:00:04]} 42. f3 {[%clk 0:00:43]}  Qa7 {[%clk 0:00:03]} 43. Be3 {[%clk 0:00:43]}  Qc7 {[%clk 0:00:03]} 44. b5 {[%clk 0:00:41]}  Bxa3 {[%clk 0:00:02]} 45. Qxa3 {[%clk 0:00:40]}  Qc2+ {[%clk 0:00:02]} 46. Bf2 {[%clk 0:00:40]}  Qb3 {[%clk 0:00:01]} 47. Qxb3 {[%clk 0:00:40]} 1-0


[Site "https://www.chess.com"]

[Event "Titled Tuesday Blitz April 18 Late 2023"]
[White "Vasques, Antonio Pedro Freixial"]
[Black "Klenburg, Michael"]
[WhiteFideId "1908332"]
[BlackFideId "14102072"]
[WhiteElo "2212"]
[BlackElo "2396"]
[Result "0-1"]
[Round "02"]
[TimeControl "180+2"]
[Date "2023.04.18"]
[WhiteClock "0:00:02"]
[BlackClock "0:00:16"]

1. e4 {[%clk 0:03:00]}  d6 {[%clk 0:02:57]} 2. d4 {[%clk 0:02:57]}  Nf6 {[%clk 0:02:57]} 3. Nc3 {[%clk 0:02:56]}  g6 {[%clk 0:02:57]} 4. h4 {[%clk 0:02:53]}  Bg7 {[%clk 0:02:55]} 5. h5 {[%clk 0:02:54]}  Nxh5 {[%clk 0:02:55]} 6. Rxh5 {[%clk 0:02:54]}  gxh5 {[%clk 0:02:55]} 7. Qxh5 {[%clk 0:02:55]}  Bxd4 {[%clk 0:02:55]} 8. Bc4 {[%clk 0:02:55]}  e6 {[%clk 0:02:53]} 9. Nf3 {[%clk 0:02:54]}  Bg7 {[%clk 0:02:43]} 10. Bg5 {[%clk 0:02:54]}  Qd7 {[%clk 0:02:39]} 11. O-O-O {[%clk 0:02:54]}  Nc6 {[%clk 0:02:38]} 12. e5 {[%clk 0:02:32]}  Nxe5 {[%clk 0:02:15]} 13. Nxe5 {[%clk 0:02:31]}  Bxe5 {[%clk 0:02:14]} 14. Ne4 {[%clk 0:02:32]}  Qa4 {[%clk 0:02:10]} 15. Qe2 {[%clk 0:02:18]}  Bd7 {[%clk 0:01:42]} 16. f4 {[%clk 0:02:09]}  Bg7 {[%clk 0:01:41]} 17. Bf6 {[%clk 0:02:05]}  Bxf6 {[%clk 0:01:34]} 18. Nxf6+ {[%clk 0:02:04]}  Kd8 {[%clk 0:01:34]} 19. f5 {[%clk 0:01:58]}  d5 {[%clk 0:01:21]} 20. Bxd5 {[%clk 0:01:40]}  exd5 {[%clk 0:01:14]} 21. Rxd5 {[%clk 0:01:39]}  Kc8 {[%clk 0:00:45]} 22. Rxd7 {[%clk 0:01:11]}  Qc6 {[%clk 0:00:45]} 23. Qe7 {[%clk 0:01:01]}  b6 {[%clk 0:00:40]} 24. b4 {[%clk 0:00:22]}  Kb7 {[%clk 0:00:32]} 25. b5 {[%clk 0:00:22]}  Qc4 {[%clk 0:00:32]} 26. Nd5 {[%clk 0:00:18]}  Rac8 {[%clk 0:00:31]} 27. Qe5 {[%clk 0:00:11]}  Rhe8 {[%clk 0:00:19]} 28. Qf4 {[%clk 0:00:04]}  Re1+ {[%clk 0:00:18]} 29. Kb2 {[%clk 0:00:04]}  Qxb5+ {[%clk 0:00:17]} 30. Nb4 {[%clk 0:00:03]}  Qxd7 {[%clk 0:00:17]} 31. Qf3+ {[%clk 0:00:03]}  c6 {[%clk 0:00:17]} 32. Qg3 {[%clk 0:00:02]}  Qd4+ {[%clk 0:00:16]} 0-1


[Site "https://www.chess.com"]

[Event "Titled Tuesday Blitz April 18 Late 2023"]
[White "Pesotskiy, Mikhail"]
[Black "Blomqvist, Erik"]
[WhiteFideId "34164453"]
[BlackFideId "1709437"]
[WhiteElo "2131"]
[BlackElo "2436"]
[Result "0-1"]
[Round "02"]
[TimeControl "180+2"]
[Date "2023.04.18"]
[WhiteClock "0:00:10"]
[BlackClock "0:00:35"]

1. d4 {[%clk 0:01:50]}  d5 {[%clk 0:02:55]} 2. c4 {[%clk 0:01:51]}  c6 {[%clk 0:02:56]} 3. Nf3 {[%clk 0:01:51]}  Nf6 {[%clk 0:02:56]} 4. Nbd2 {[%clk 0:01:51]}  Bf5 {[%clk 0:02:56]} 5. Nh4 {[%clk 0:01:52]}  Be4 {[%clk 0:02:56]} 6. f3 {[%clk 0:01:51]}  Bg6 {[%clk 0:02:56]} 7. Qb3 {[%clk 0:01:52]}  Qb6 {[%clk 0:02:52]} 8. e3 {[%clk 0:01:52]}  e6 {[%clk 0:02:51]} 9. g3 {[%clk 0:01:51]}  Qxb3 {[%clk 0:02:47]} 10. axb3 {[%clk 0:01:50]}  Bc2 {[%clk 0:02:48]} 11. c5 {[%clk 0:01:36]}  g5 {[%clk 0:02:12]} 12. Ng2 {[%clk 0:01:35]}  Bg7 {[%clk 0:02:12]} 13. b4 {[%clk 0:01:29]}  e5 {[%clk 0:02:00]} 14. dxe5 {[%clk 0:01:24]}  Nfd7 {[%clk 0:01:57]} 15. f4 {[%clk 0:01:24]}  a5 {[%clk 0:01:51]} 16. bxa5 {[%clk 0:01:04]}  Nxc5 {[%clk 0:01:50]} 17. b4 {[%clk 0:01:05]}  Nd3+ {[%clk 0:01:48]} 18. Bxd3 {[%clk 0:01:01]}  Bxd3 {[%clk 0:01:49]} 19. Bb2 {[%clk 0:01:00]}  Na6 {[%clk 0:01:47]} 20. Bc3 {[%clk 0:00:54]}  Nc7 {[%clk 0:01:40]} 21. Nb3 {[%clk 0:00:43]}  Nb5 {[%clk 0:01:29]} 22. Bb2 {[%clk 0:00:37]}  Bf8 {[%clk 0:01:26]} 23. Nc5 {[%clk 0:00:37]}  Be4 {[%clk 0:01:15]} 24. Kf2 {[%clk 0:00:34]}  Rg8 {[%clk 0:01:09]} 25. Nxb7 {[%clk 0:00:19]}  Bxb4 {[%clk 0:01:08]} 26. Rhc1 {[%clk 0:00:19]}  Ra6 {[%clk 0:00:56]} 27. Nd6+ {[%clk 0:00:16]}  Nxd6 {[%clk 0:00:51]} 28. exd6 {[%clk 0:00:17]}  Bxd6 {[%clk 0:00:52]} 29. Bd4 {[%clk 0:00:16]}  Kd7 {[%clk 0:00:50]} 30. Rcb1 {[%clk 0:00:12]}  Bxb1 {[%clk 0:00:45]} 31. Rxb1 {[%clk 0:00:12]}  Rxa5 {[%clk 0:00:45]} 32. Rb7+ {[%clk 0:00:12]}  Ke6 {[%clk 0:00:44]} 33. Kf3 {[%clk 0:00:09]}  g4+ {[%clk 0:00:38]} 34. Kf2 {[%clk 0:00:09]}  Ra2+ {[%clk 0:00:37]} 35. Rb2 {[%clk 0:00:08]}  Rxb2+ {[%clk 0:00:36]} 36. Bxb2 {[%clk 0:00:09]}  Ra8 {[%clk 0:00:36]} 37. Bg7 {[%clk 0:00:10]}  Ra2+ {[%clk 0:00:35]} 0-1


[Site "https://www.chess.com"]

[Event "Titled Tuesday Blitz April 18 Late 2023"]
[White "Seder, Mohammed"]
[Black "Zarnicki, Pablo"]
[WhiteFideId "11505567"]
[BlackFideId "100137"]
[WhiteElo "1862"]
[BlackElo "2468"]
[Result "0-1"]
[Round "02"]
[TimeControl "180+2"]
[Date "2023.04.18"]
[WhiteClock "0:00:02"]
[BlackClock "0:00:05"]

1. e4 {[%clk 0:03:00]}  c5 {[%clk 0:02:57]} 2. Nf3 {[%clk 0:03:00]}  e6 {[%clk 0:02:57]} 3. d4 {[%clk 0:02:57]}  cxd4 {[%clk 0:02:56]} 4. Nxd4 {[%clk 0:02:58]}  Nf6 {[%clk 0:02:27]} 5. Bd3 {[%clk 0:02:57]}  Nc6 {[%clk 0:02:27]} 6. Be3 {[%clk 0:02:56]}  d5 {[%clk 0:02:24]} 7. exd5 {[%clk 0:02:55]}  Nxd5 {[%clk 0:02:20]} 8. Nxc6 {[%clk 0:02:55]}  Nxe3 {[%clk 0:02:05]} 9. Nxd8 {[%clk 0:02:45]}  Nxd1 {[%clk 0:02:05]} 10. Nxe6 {[%clk 0:02:14]}  Nxf2 {[%clk 0:01:56]} 11. Nc7+ {[%clk 0:01:48]}  Kd8 {[%clk 0:01:55]} 12. Kxf2 {[%clk 0:01:49]}  Bc5+ {[%clk 0:01:52]} 13. Kg3 {[%clk 0:01:41]}  Kxc7 {[%clk 0:01:51]} 14. Rf1 {[%clk 0:01:39]}  Be6 {[%clk 0:01:49]} 15. Nd2 {[%clk 0:01:38]}  Rad8 {[%clk 0:01:21]} 16. Ne4 {[%clk 0:01:36]}  Be7 {[%clk 0:01:04]} 17. Rae1 {[%clk 0:01:21]}  h6 {[%clk 0:01:01]} 18. Kf2 {[%clk 0:01:10]}  f5 {[%clk 0:00:56]} 19. Ng3 {[%clk 0:01:05]}  Bc5+ {[%clk 0:00:55]} 20. Ke2 {[%clk 0:01:04]}  Rhe8 {[%clk 0:00:49]} 21. Kd1 {[%clk 0:00:54]}  g6 {[%clk 0:00:37]} 22. Kc1 {[%clk 0:00:54]}  h5 {[%clk 0:00:36]} 23. Ne2 {[%clk 0:00:42]}  Be3+ {[%clk 0:00:17]} 24. Kb1 {[%clk 0:00:41]}  Bd5 {[%clk 0:00:18]} 25. Nc3 {[%clk 0:00:07]}  Bxg2 {[%clk 0:00:15]} 26. Bb5 {[%clk 0:00:07]}  Re5 {[%clk 0:00:10]} 27. Rg1 {[%clk 0:00:06]}  Bxg1 {[%clk 0:00:06]} 28. Rxe5 {[%clk 0:00:05]}  a6 {[%clk 0:00:06]} 29. Re7+ {[%clk 0:00:05]}  Kd6 {[%clk 0:00:06]} 30. Re1 {[%clk 0:00:04]}  Bf2 {[%clk 0:00:04]} 31. Re2 {[%clk 0:00:03]}  axb5 {[%clk 0:00:03]} 32. Rxf2 {[%clk 0:00:04]}  Bc6 {[%clk 0:00:03]} 33. Rd2+ {[%clk 0:00:03]}  Kc7 {[%clk 0:00:03]} 34. Rxd8 {[%clk 0:00:04]}  Kxd8 {[%clk 0:00:03]} 35. Kc1 {[%clk 0:00:04]}  f4 {[%clk 0:00:04]} 36. Kd2 {[%clk 0:00:05]}  g5 {[%clk 0:00:04]} 37. Ne2 {[%clk 0:00:04]}  Ke7 {[%clk 0:00:05]} 38. h4 {[%clk 0:00:04]}  Kf6 {[%clk 0:00:05]} 39. hxg5+ {[%clk 0:00:04]}  Kxg5 {[%clk 0:00:05]} 40. Kd3 {[%clk 0:00:03]}  Kg4 {[%clk 0:00:06]} 41. Nd4 {[%clk 0:00:02]}  f3 {[%clk 0:00:06]} 42. Ke3 {[%clk 0:00:02]}  h4 {[%clk 0:00:05]} 0-1


[Site "https://www.chess.com"]

[Event "Titled Tuesday Blitz April 18 Late 2023"]
[White "Ardila, Oscar Humberto"]
[Black "ATM622"]
[WhiteFideId "4404742"]
[WhiteElo "1918"]
[BlackElo "2508"]
[Result "0-1"]
[Round "02"]
[TimeControl "180+2"]
[Date "2023.04.18"]
[WhiteClock "0:00:06"]
[BlackClock "0:00:48"]

1. d4 {[%clk 0:02:59]}  Nf6 {[%clk 0:02:59]} 2. c4 {[%clk 0:02:59]}  e6 {[%clk 0:03:00]} 3. Nc3 {[%clk 0:02:59]}  Bb4 {[%clk 0:02:59]} 4. Bd2 {[%clk 0:03:00]}  c5 {[%clk 0:02:58]} 5. dxc5 {[%clk 0:02:59]}  Na6 {[%clk 0:02:56]} 6. a3 {[%clk 0:02:59]}  Bxc3 {[%clk 0:02:56]} 7. Bxc3 {[%clk 0:02:59]}  Nxc5 {[%clk 0:02:55]} 8. Nf3 {[%clk 0:02:59]}  O-O {[%clk 0:02:52]} 9. e3 {[%clk 0:02:58]}  b6 {[%clk 0:02:50]} 10. b4 {[%clk 0:02:51]}  Nce4 {[%clk 0:02:48]} 11. Bb2 {[%clk 0:02:51]}  Bb7 {[%clk 0:02:48]} 12. Be2 {[%clk 0:02:50]}  d5 {[%clk 0:02:48]} 13. O-O {[%clk 0:02:49]}  Rc8 {[%clk 0:02:45]} 14. Rc1 {[%clk 0:02:35]}  dxc4 {[%clk 0:02:41]} 15. Bxc4 {[%clk 0:02:34]}  Nd5 {[%clk 0:02:32]} 16. Qd4 {[%clk 0:02:28]}  Qf6 {[%clk 0:02:27]} 17. Qxf6 {[%clk 0:02:04]}  Nexf6 {[%clk 0:02:24]} 18. Rfd1 {[%clk 0:02:00]}  Rfd8 {[%clk 0:02:21]} 19. Nd4 {[%clk 0:01:57]}  Kf8 {[%clk 0:02:16]} 20. Nb5 {[%clk 0:01:52]}  a6 {[%clk 0:02:13]} 21. Nd4 {[%clk 0:01:48]}  Ke7 {[%clk 0:02:04]} 22. Bd3 {[%clk 0:01:38]}  g6 {[%clk 0:02:01]} 23. Rxc8 {[%clk 0:01:31]}  Rxc8 {[%clk 0:02:00]} 24. Rc1 {[%clk 0:01:31]}  Rxc1+ {[%clk 0:01:53]} 25. Bxc1 {[%clk 0:01:31]}  e5 {[%clk 0:01:51]} 26. Ne2 {[%clk 0:01:10]}  e4 {[%clk 0:01:45]} 27. Bc4 {[%clk 0:01:10]}  b5 {[%clk 0:01:44]} 28. Bb3 {[%clk 0:01:09]}  Nb6 {[%clk 0:01:41]} 29. Bb2 {[%clk 0:01:06]}  Bd5 {[%clk 0:01:36]} 30. Bc2 {[%clk 0:00:57]}  Nc4 {[%clk 0:01:34]} 31. Bc1 {[%clk 0:00:56]}  Kd6 {[%clk 0:01:32]} 32. Kf1 {[%clk 0:00:54]}  Nd7 {[%clk 0:01:27]} 33. Ke1 {[%clk 0:00:53]}  Nde5 {[%clk 0:01:25]} 34. Nc3 {[%clk 0:00:41]}  f5 {[%clk 0:01:21]} 35. Nxd5 {[%clk 0:00:36]}  Kxd5 {[%clk 0:01:20]} 36. Ke2 {[%clk 0:00:36]}  g5 {[%clk 0:01:15]} 37. f3 {[%clk 0:00:33]}  h5 {[%clk 0:01:10]} 38. a4 {[%clk 0:00:33]}  bxa4 {[%clk 0:01:06]} 39. Bxa4 {[%clk 0:00:32]}  Nd3 {[%clk 0:01:06]} 40. Bd2 {[%clk 0:00:31]}  Nxd2 {[%clk 0:01:01]} 41. Kxd2 {[%clk 0:00:31]}  exf3 {[%clk 0:00:56]} 42. gxf3 {[%clk 0:00:23]}  Nxb4 {[%clk 0:00:56]} 43. Be8 {[%clk 0:00:22]}  h4 {[%clk 0:00:54]} 44. Bf7+ {[%clk 0:00:21]}  Ke5 {[%clk 0:00:54]} 45. Kc3 {[%clk 0:00:19]}  Nd5+ {[%clk 0:00:53]} 46. Kd3 {[%clk 0:00:19]}  a5 {[%clk 0:00:52]} 47. Bg8 {[%clk 0:00:13]}  a4 {[%clk 0:00:51]} 48. Bf7 {[%clk 0:00:11]}  a3 {[%clk 0:00:51]} 49. Bxd5 {[%clk 0:00:08]}  Kxd5 {[%clk 0:00:50]} 50. Kc3 {[%clk 0:00:08]}  h3 {[%clk 0:00:47]} 51. Kb3 {[%clk 0:00:08]}  g4 {[%clk 0:00:47]} 52. fxg4 {[%clk 0:00:05]}  fxg4 {[%clk 0:00:48]} 53. Kxa3 {[%clk 0:00:06]}  g3 {[%clk 0:00:48]} 0-1


[Site "https://www.chess.com"]

[Event "Titled Tuesday Blitz April 18 Late 2023"]
[White "Kraus, Tomas"]
[Black "Tokman, Ariel"]
[WhiteFideId "331708"]
[BlackFideId "117420"]
[WhiteElo "2389"]
[BlackElo "2263"]
[Result "1/2-1/2"]
[Round "02"]
[TimeControl "180+2"]
[Date "2023.04.18"]
[WhiteClock "0:00:09"]
[BlackClock "0:00:08"]

1. d4 {[%clk 0:03:00]}  Nf6 {[%clk 0:02:59]} 2. c4 {[%clk 0:03:00]}  g6 {[%clk 0:02:59]} 3. Nf3 {[%clk 0:02:57]}  Bg7 {[%clk 0:03:00]} 4. e3 {[%clk 0:02:56]}  d5 {[%clk 0:03:00]} 5. cxd5 {[%clk 0:02:54]}  Nxd5 {[%clk 0:03:00]} 6. Be2 {[%clk 0:02:54]}  O-O {[%clk 0:03:00]} 7. O-O {[%clk 0:02:54]}  Nc6 {[%clk 0:02:53]} 8. e4 {[%clk 0:02:54]}  Nb6 {[%clk 0:02:52]} 9. d5 {[%clk 0:02:55]}  Nb8 {[%clk 0:02:52]} 10. Nc3 {[%clk 0:02:53]}  c6 {[%clk 0:02:52]} 11. Bg5 {[%clk 0:02:52]}  cxd5 {[%clk 0:02:48]} 12. exd5 {[%clk 0:02:53]}  Bg4 {[%clk 0:02:35]} 13. Re1 {[%clk 0:02:46]}  Re8 {[%clk 0:02:13]} 14. Rc1 {[%clk 0:02:39]}  Na6 {[%clk 0:02:12]} 15. Bb5 {[%clk 0:02:24]}  Bd7 {[%clk 0:02:07]} 16. Bxa6 {[%clk 0:02:06]}  bxa6 {[%clk 0:02:07]} 17. d6 {[%clk 0:02:07]}  f6 {[%clk 0:02:06]} 18. dxe7 {[%clk 0:01:51]}  Rxe7 {[%clk 0:02:03]} 19. Rxe7 {[%clk 0:01:49]}  Qxe7 {[%clk 0:02:04]} 20. Nd5 {[%clk 0:01:49]}  Qf7 {[%clk 0:01:46]} 21. Nxb6 {[%clk 0:01:31]}  axb6 {[%clk 0:01:46]} 22. Rc7 {[%clk 0:01:31]}  Rd8 {[%clk 0:01:14]} 23. Ne5 {[%clk 0:01:30]}  Qe8 {[%clk 0:01:06]} 24. Rxd7 {[%clk 0:00:08]}  Rxd7 {[%clk 0:01:04]} 25. Nxd7 {[%clk 0:00:08]}  fxg5 {[%clk 0:01:02]} 26. Nxb6 {[%clk 0:00:08]}  Bxb2 {[%clk 0:00:35]} 27. h4 {[%clk 0:00:07]}  Bg7 {[%clk 0:00:08]} 28. hxg5 {[%clk 0:00:07]}  Qe6 {[%clk 0:00:06]} 29. Qd5 {[%clk 0:00:06]}  Kf7 {[%clk 0:00:05]} 30. f4 {[%clk 0:00:05]}  h6 {[%clk 0:00:03]} 31. Qxe6+ {[%clk 0:00:05]}  Kxe6 {[%clk 0:00:03]} 32. gxh6 {[%clk 0:00:06]}  Bxh6 {[%clk 0:00:04]} 33. g3 {[%clk 0:00:07]}  g5 {[%clk 0:00:04]} 34. fxg5 {[%clk 0:00:07]}  Bxg5 {[%clk 0:00:05]} 35. Kg2 {[%clk 0:00:07]}  Kd6 {[%clk 0:00:05]} 36. Kf3 {[%clk 0:00:07]}  Kc5 {[%clk 0:00:05]} 37. Nd7+ {[%clk 0:00:06]}  Kb4 {[%clk 0:00:05]} 38. Kg4 {[%clk 0:00:06]}  Bc1 {[%clk 0:00:05]} 39. Nb8 {[%clk 0:00:05]}  a5 {[%clk 0:00:05]} 40. Nc6+ {[%clk 0:00:06]}  Kb5 {[%clk 0:00:05]} 41. Nxa5 {[%clk 0:00:07]}  Kxa5 {[%clk 0:00:06]} 42. Kf5 {[%clk 0:00:07]}  Ka4 {[%clk 0:00:06]} 43. g4 {[%clk 0:00:08]}  Ka3 {[%clk 0:00:07]} 44. g5 {[%clk 0:00:08]}  Bxg5 {[%clk 0:00:07]} 45. Kxg5 {[%clk 0:00:09]}  Kxa2 {[%clk 0:00:08]} 1/2-1/2


[Site "https://www.chess.com"]